fUST/lending_fUST_20250530
["ID","MTS","AMOUNT","RATE_DAILY","PERIOD"]
[363013628,1748549462587,-1205.75,0.00021369,2]
[363013630,1748549462598,-984.37,0.00021369,2]
[363013632,1748549462611,-7352.62,0.00021369,2]
[363013634,1748549462625,-430.0,0.00021369,2]
[363013636,1748549462635,-594.42,0.00021369,2]
[363013638,1748549462651,-401.35606081,0.00021369,2]
[363013640,1748549462661,-151.0,0.00021369,2]
[363013642,1748549462672,-1874.18,0.00021369,2]
[363013645,1748549462682,-173.94,0.00021369,2]
[363013647,1748549462693,-430.0,0.00021369,2]
[363013649,1748549462704,-12309.9,0.00021369,2]
[363013651,1748549462713,-5190.7,0.00021369,2]
[363013653,1748549462723,-7566.48,0.00021369,2]
[363013655,1748549462732,-1104.35,0.00021369,2]
[363013657,1748549462742,-6241.32,0.00021369,2]
[363013658,1748549462751,-5362.8,0.00021369,2]
[363013660,1748549462761,-430.0,0.00021369,2]
[363013662,1748549462770,-430.0,0.00021369,2]
[363013664,1748549462781,-641.57,0.00021369,2]
[363013666,1748549462790,-447.91,0.00021369,2]
[363013668,1748549462800,-1205.76,0.00021369,2]
[363013670,1748549462811,-3425.09,0.00021369,2]
[363013672,1748549462820,-5494.42,0.00021369,2]
[363013675,1748549462830,-369.0312249,0.00021395,2]
[363013677,1748549462839,-215.0738,0.00021435,2]
[363013679,1748549462849,-3014.44826507,0.00021452,5]
[363013681,1748549462858,-151.0,0.0002155,2]
[363013682,1748549462868,-600.0,0.00021616,2]
[363013685,1748549462877,-3014.44826507,0.00021624,5]
[363013686,1748549462887,-151.0,0.00021642,2]
[363013689,1748549462899,-151.0,0.00021642,2]
[363013701,1748549463017,-151.0,0.00021642,2]
[363013703,1748549463027,-151.0,0.00021642,2]
[363013706,1748549463037,-151.0,0.00021642,2]
[363013707,1748549463047,-151.0,0.00021642,2]
[363013710,1748549463056,-151.0,0.00021642,2]
[363013711,1748549463067,-335.140275,0.00021642,2]
[363013713,1748549463076,-335.140275,0.00021642,2]
[363013715,1748549463086,-463.127135,0.00021642,2]
[363013717,1748549463095,-463.127135,0.00021642,2]
[363013719,1748549463105,-270.819095,0.00021642,2]
[363013721,1748549463114,-270.819095,0.00021642,2]
[363013723,1748549463124,-424.140348,0.00021642,2]
[363013725,1748549463133,-424.140348,0.00021642,2]
[363013727,1748549463145,-160.0,0.00021642,2]
[363013729,1748549463155,-201.864626,0.00021643,2]
[363013731,1748549463166,-201.864626,0.00021643,2]
[363013733,1748549463175,-241.098971,0.00021643,2]
[363013735,1748549463186,-241.098971,0.00021643,2]
[363013737,1748549463195,-151.0,0.00021643,2]
[363013739,1748549463205,-335.140275,0.00021643,2]
[363013741,1748549463214,-335.140275,0.00021643,2]
[363013743,1748549463223,-151.0,0.00021643,2]
[363013745,1748549463233,-151.0,0.00021643,2]
[363013747,1748549463243,-479.369081,0.00021643,2]
[363013749,1748549463252,-479.369081,0.00021643,2]
[363013751,1748549463261,-157.472922,0.00021643,2]
[363013753,1748549463270,-151.0,0.00021643,2]
[363013755,1748549463280,-205.166101,0.00021643,2]
[363013757,1748549463289,-205.166101,0.00021643,2]
[363013760,1748549463299,-157.139693,0.00021643,2]
[363013761,1748549463309,-157.139693,0.00021643,2]
[363013763,1748549463319,-1153.678468,0.00021643,2]
[363013766,1748549463328,-1153.678468,0.00021643,2]
[363013768,1748549463337,-151.0,0.00021643,2]
[363013770,1748549463347,-254.242869,0.00021643,2]
[363013772,1748549463356,-254.242869,0.00021643,2]
[363013774,1748549463365,-1558.393227,0.00021643,2]
[363013775,1748549463375,-1558.393227,0.00021643,2]
[363013777,1748549463384,-430.0,0.00021643,2]
[363013779,1748549463394,-151.0,0.00021643,2]
[363013781,1748549463404,-430.0,0.00021643,2]
[363013783,1748549463414,-320.97949,0.00021643,2]
[363013785,1748549463423,-320.97949,0.00021643,2]
[363013787,1748549463432,-151.0,0.00021643,2]
[363013789,1748549463442,-2359.875458,0.00021643,2]
[363013791,1748549463451,-2359.875458,0.00021643,2]
[363013793,1748549463460,-151.0,0.00021643,2]
[363013795,1748549463470,-151.0,0.00021643,2]
[363013798,1748549463479,-430.0,0.00021643,2]
[363013799,1748549463488,-244.505466,0.00021643,2]
[363013801,1748549463498,-430.0,0.00021643,2]
[363013803,1748549463507,-430.0,0.00021643,2]
[363013805,1748549463516,-244.505466,0.00021643,2]
[363013807,1748549463526,-430.0,0.00021643,2]
[363013809,1748549463535,-1586.339018,0.00021643,2]
[363013811,1748549463544,-1586.339018,0.00021643,2]
[363013813,1748549463554,-262.046232,0.00021643,2]
[363013815,1748549463564,-262.046232,0.00021643,2]
[363013817,1748549463573,-430.0,0.00021643,2]
[363013819,1748549463583,-430.0,0.00021643,2]
[363013821,1748549463594,-430.0,0.00021643,2]
[363013823,1748549463604,-430.0,0.00021643,2]
[363013825,1748549463616,-511.29,0.00021643,2]
[363013827,1748549463625,-430.0,0.00021643,2]
[363013829,1748549463635,-430.0,0.00021643,2]
[363013831,1748549463647,-2547.3,0.00021643,2]
[363013833,1748549463658,-430.0,0.00021643,2]
[363013835,1748549463667,-631.19,0.00021643,2]
[363013837,1748549463677,-430.0,0.00021643,2]
[363013839,1748549463686,-1493.21,0.00021643,2]
[363013841,1748549463696,-430.0,0.00021643,2]
[363013843,1748549463706,-490.0,0.00021643,2]
[363013844,1748549463715,-657.73,0.00021643,2]
[363013846,1748549463725,-430.0,0.00021643,2]
[363013848,1748549463735,-430.0,0.00021643,2]
[363013850,1748549463744,-430.0,0.00021643,2]
[363013852,1748549463754,-430.0,0.00021643,2]
[363013854,1748549463764,-248.268931,0.00021643,2]
[363013856,1748549463773,-248.268931,0.00021643,2]
[363013858,1748549463782,-1197.968823,0.00021643,2]
[363013860,1748549463792,-1197.968823,0.00021643,2]
[363013862,1748549463802,-1289.81,0.00021643,2]
[363013864,1748549463811,-430.0,0.00021643,2]
[363013866,1748549463820,-430.0,0.00021643,2]
[363013868,1748549463829,-430.0,0.00021643,2]
[363013870,1748549463839,-1598.38,0.00021643,2]
[363013872,1748549463848,-430.0,0.00021643,2]
[363013873,1748549463858,-2053.27,0.00021643,2]
[363013875,1748549463866,-1525.7,0.00021643,2]
[363013877,1748549463876,-566.83,0.00021643,2]
[363013879,1748549463886,-430.0,0.00021643,2]
[363013881,1748549463896,-924.2,0.00021643,2]
[363013883,1748549463905,-1613.56,0.00021643,2]
[363013885,1748549463915,-1663.74,0.00021643,2]
[363013887,1748549463925,-434.48,0.00021643,2]
[363013889,1748549463934,-635.963784,0.00021643,2]
[363013891,1748549463942,-635.963784,0.00021643,2]
[363013893,1748549463952,-541.63,0.00021643,2]
[363013895,1748549463962,-835.53,0.00021643,2]
[363013897,1748549463971,-430.0,0.00021643,2]
[363013899,1748549463981,-430.0,0.00021643,2]
[363013900,1748549463991,-697.06,0.00021643,2]
[363013902,1748549464001,-171.211019,0.00021643,2]
[363013904,1748549464011,-719.7,0.00021643,2]
[363013906,1748549464021,-171.211019,0.00021643,2]
[363013908,1748549464032,-430.0,0.00021643,2]
[363013910,1748549464042,-430.0,0.00021643,2]
[363013912,1748549464052,-1058.87,0.00021643,2]
[363013914,1748549464061,-505.83,0.00021643,2]
[363013916,1748549464070,-4239.46,0.00021643,2]
[363013918,1748549464080,-430.0,0.00021643,2]
[363013920,1748549464090,-430.0,0.00021643,2]
[363013922,1748549464099,-430.0,0.00021643,2]
[363013924,1748549464108,-430.0,0.00021643,2]
[363013926,1748549464117,-151.0,0.00021643,2]
[363013927,1748549464127,-684.87,0.00021643,2]
[363013929,1748549464137,-766.46,0.00021643,2]
[363013931,1748549464149,-1884.25,0.00021643,2]
[363013933,1748549464159,-8614.59,0.00021643,2]
[363013935,1748549464168,-430.0,0.00021643,2]
[363013937,1748549464177,-430.0,0.00021643,2]
[363013939,1748549464187,-9593.71,0.00021643,2]
[363013941,1748549464197,-500.0,0.00021643,2]
[363013943,1748549464207,-430.0,0.00021643,2]
[363013945,1748549464217,-430.0,0.00021643,2]
[363013947,1748549464226,-238.46,0.00021643,2]
[363013949,1748549464235,-2177.87,0.00021643,2]
[363013951,1748549464245,-1506.744032,0.00021643,2]
[363013953,1748549464255,-3170.25,0.00021643,2]
[363013955,1748549464265,-1506.744032,0.00021643,2]
[363013957,1748549464274,-731.21,0.00021643,2]
[363013958,1748549464280,-4753.34,0.00021643,2]
[363013960,1748549464288,-3190.48,0.00021643,2]
[363013962,1748549464295,-151.0,0.00021643,2]
[363013964,1748549464302,-151.0,0.00021643,2]
[363013965,1748549464309,-8930.54,0.00021643,2]
[363013967,1748549464318,-1845.48,0.00021643,2]
[363013969,1748549464326,-3276.45,0.00021643,2]
[363013971,1748549464333,-430.0,0.00021643,2]
[363013973,1748549464342,-962.473811,0.00021643,2]
[363013975,1748549464351,-1439.05,0.00021643,2]
[363013977,1748549464361,-962.473803,0.00021643,2]
[363013979,1748549464371,-342.862776,0.00021643,2]
[363013981,1748549464380,-5099.18,0.00021643,2]
[363013983,1748549464389,-430.0,0.00021643,2]
[363013984,1748549464405,-342.862768,0.00021643,2]
[363013986,1748549464415,-1486.634382,0.00021643,2]
[363013988,1748549464424,-1486.634388,0.00021643,2]
[363013990,1748549464434,-2614.13,0.00021643,2]
[363013992,1748549464444,-3219.84,0.00021643,2]
[363013994,1748549464453,-765.63,0.00021643,2]
[363013996,1748549464462,-3876.68,0.00021643,2]
[363013998,1748549464472,-430.0,0.00021643,2]
[363014000,1748549464481,-495.3,0.00021643,2]
[363014002,1748549464491,-2095.37,0.00021643,2]
[363014004,1748549464500,-11864.57,0.00021643,2]
[363014006,1748549464510,-725.41,0.00021643,2]
[363014008,1748549464519,-430.0,0.00021643,2]
[363014010,1748549464528,-574.83,0.00021643,2]
[363014012,1748549464537,-674.31,0.00021643,2]
[363014014,1748549464547,-899.16,0.00021643,2]
[363014016,1748549464556,-953.05,0.00021643,2]
[363014018,1748549464566,-430.0,0.00021643,2]
[363014020,1748549464575,-1910.48,0.00021643,2]
[363014021,1748549464584,-1205.75,0.00021643,2]
[363014023,1748549464594,-984.37,0.00021643,2]
[363014025,1748549464603,-7352.62,0.00021643,2]
[363014027,1748549464614,-430.0,0.00021643,2]
[363014029,1748549464624,-594.42,0.00021643,2]
[363014031,1748549464634,-151.0,0.00021643,2]
[363014033,1748549464648,-1874.18,0.00021643,2]
[363014035,1748549464657,-430.0,0.00021643,2]
[363014037,1748549464666,-12309.9,0.00021643,2]
[363014039,1748549464675,-7566.48,0.00021643,2]
[363014041,1748549464685,-5190.7,0.00021643,2]
[363014043,1748549464695,-1104.35,0.00021643,2]
[363014045,1748549464705,-6241.32,0.00021643,2]
[363014046,1748549464715,-5362.8,0.00021643,2]
[363014048,1748549464724,-337.8849395,0.00021643,2]
[363014050,1748549464734,-430.0,0.00021643,2]
[363014052,1748549464743,-641.57,0.00021643,2]
[363014054,1748549464752,-447.91,0.00021643,2]
[363014056,1748549464763,-1205.76,0.00021643,2]
[363014058,1748549464772,-3425.09,0.00021643,2]
[363014060,1748549464782,-5494.42,0.00021643,2]
[363014062,1748549464792,-500.0,0.00021673,2]
[363014064,1748549464801,-889.998081,0.00021673,2]
[363014066,1748549464810,-889.998081,0.00021673,2]
[363014068,1748549464819,-151.0,0.00021673,2]
[363014070,1748549464829,-70898.06098452,0.000217,2]
[363014072,1748549464838,-151.0,0.000217,2]
[363014074,1748549464847,-151.0,0.000217,2]
[363014076,1748549464856,-151.0,0.000217,2]
[363014078,1748549464866,-299.990644,0.000217,2]
[363014079,1748549464875,-151.0,0.000217,2]
[363014081,1748549464884,-260.334711,0.000217,2]
[363014083,1748549464896,-260.334711,0.000217,2]
[363014085,1748549464906,-151.0,0.000217,2]
[363014087,1748549464915,-151.0,0.000217,2]
[363014089,1748549464924,-151.0,0.000217,2]
[363014091,1748549464934,-4015.542169,0.000217,2]
[363014093,1748549464943,-4015.542169,0.000217,2]
[363014095,1748549464953,-239.490931,0.000217,2]
[363014097,1748549464963,-239.490931,0.000217,2]
[363014099,1748549464972,-151.0,0.000217,2]
[363014101,1748549464982,-151.0,0.000217,2]
[363014102,1748549464991,-302.068116,0.000217,2]
[363014104,1748549465000,-302.068116,0.000217,2]
[363014106,1748549465010,-1333.563387,0.000217,2]
[363014108,1748549465020,-4029.361053,0.000217,2]
[363014110,1748549465029,-151.0,0.000217,2]
[363014112,1748549465039,-260.551144,0.000217,2]
[363014114,1748549465049,-260.551144,0.000217,2]
[363014116,1748549465059,-320.97949,0.000217,2]
[363014118,1748549465068,-320.97949,0.000217,2]
[363014120,1748549465078,-276.452001,0.000217,2]
[363014122,1748549465087,-1915.52743,0.000217,2]
[363014124,1748549465097,-276.452001,0.000217,2]
[363014126,1748549465106,-678.591457,0.000217,2]
[363014127,1748549465115,-678.591457,0.000217,2]
[363014129,1748549465125,-151.0,0.000217,2]
[363014131,1748549465134,-151.0,0.000217,2]
[363014133,1748549465147,-244.505466,0.000217,2]
[363014135,1748549465158,-244.505466,0.000217,2]
[363014137,1748549465169,-168.8914,0.000217,2]
[363014139,1748549465179,-168.8914,0.000217,2]
[363014141,1748549465190,-262.046232,0.000217,2]
[363014143,1748549465200,-262.046232,0.000217,2]
[363014145,1748549465209,-1197.968823,0.000217,2]
[363014147,1748549465218,-1197.968823,0.000217,2]
[363014149,1748549465228,-171.211019,0.000217,2]
[363014151,1748549465238,-171.211019,0.000217,2]
[363014153,1748549465248,-5000.0,0.0002171,2]
[363014155,1748549465257,-331.4154804,0.0002171,2]
[363014156,1748549465267,-306.0,0.0002171,2]
[363014158,1748549465277,-306.0,0.0002171,2]
[363014160,1748549465286,-564.9331697,0.0002171,2]
[363014162,1748549465295,-581.35987878,0.00021729,2]
[363014164,1748549465305,-3014.44826507,0.00021797,6]
[363014166,1748549465314,-6000.0,0.000219,6]
[363014168,1748549465324,-151.0,0.00021917,2]
[363014170,1748549465333,-287.026737,0.00021917,2]
[363014172,1748549465342,-151.0,0.00021917,2]
[363014174,1748549465351,-151.0,0.00021917,2]
[363014175,1748549465360,-151.0,0.00021917,2]
[363014177,1748549465369,-151.0,0.00021917,2]
[363014179,1748549465379,-151.0,0.00021917,2]
[363014181,1748549465388,-282.886262,0.00021917,2]
[363014183,1748549465400,-335.140275,0.00021917,2]
[363014185,1748549465409,-335.140275,0.00021917,2]
[363014187,1748549465418,-151.0,0.00021917,2]
[363014189,1748549465428,-151.0,0.00021917,2]
[363014191,1748549465437,-177.948803,0.00021917,2]
[363014193,1748549465447,-479.369081,0.00021917,2]
[363014195,1748549465456,-479.369081,0.00021917,2]
[363014197,1748549465466,-463.127135,0.00021917,2]
[363014199,1748549465476,-463.127135,0.00021917,2]
[363014201,1748549465486,-151.0,0.00021917,2]
[363014203,1748549465495,-270.819095,0.00021917,2]
[363014205,1748549465505,-270.819095,0.00021917,2]
[363014206,1748549465514,-281.172433,0.00021917,2]
[363014208,1748549465523,-281.172433,0.00021917,2]
[363014210,1748549465533,-340.669478,0.00021917,2]
[363014212,1748549465542,-340.669478,0.00021917,2]
[363014214,1748549465551,-424.140348,0.00021917,2]
[363014216,1748549465561,-424.140348,0.00021917,2]
[363014218,1748549465570,-151.0,0.00021917,2]
[363014220,1748549465579,-151.0,0.00021917,2]
[363014222,1748549465589,-201.90870288,0.00021917,2]
[363014224,1748549465598,-254.242869,0.00021917,2]
[363014226,1748549465611,-254.242869,0.00021917,2]
[363014237,1748549465725,-1558.393227,0.00021917,2]
[363014239,1748549465736,-1558.393227,0.00021917,2]
[363014241,1748549465746,-430.0,0.00021917,2]
[363014243,1748549465755,-430.0,0.00021917,2]
[363014245,1748549465765,-151.0,0.00021917,2]
[363014247,1748549465775,-2359.875458,0.00021917,2]
[363014249,1748549465786,-2359.875458,0.00021917,2]
[363014251,1748549465795,-889.998081,0.00021917,2]
[363014252,1748549465804,-889.998081,0.00021917,2]
[363014253,1748549465813,-248.44,0.00021917,2]
[363014254,1748549465822,-376.44,0.00021917,2]
[363014255,1748549465831,-430.0,0.00021917,2]
[363014256,1748549465839,-151.0,0.00021917,2]
[363014257,1748549465848,-430.0,0.00021917,2]
[363014258,1748549465857,-1586.339018,0.00021917,2]
[363014259,1748549465866,-1586.339018,0.00021917,2]
[363014260,1748549465875,-430.0,0.00021917,2]
[363014261,1748549465884,-430.0,0.00021917,2]
[363014262,1748549465894,-430.0,0.00021917,2]
[363014263,1748549465903,-430.0,0.00021917,2]
[363014264,1748549465912,-511.29,0.00021917,2]
[363014265,1748549465921,-430.0,0.00021917,2]
[363014266,1748549465930,-430.0,0.00021917,2]
[363014267,1748549465939,-2547.3,0.00021917,2]
[363014268,1748549465948,-430.0,0.00021917,2]
[363014269,1748549465957,-631.19,0.00021917,2]
[363014270,1748549465967,-430.0,0.00021917,2]
[363014271,1748549465976,-1493.21,0.00021917,2]
[363014272,1748549465985,-430.0,0.00021917,2]
[363014273,1748549465994,-657.73,0.00021917,2]
[363014274,1748549466003,-430.0,0.00021917,2]
[363014275,1748549466011,-500.0,0.00021917,2]
[363014276,1748549466020,-500.0,0.00021917,2]
[363014277,1748549466029,-500.0,0.00021917,2]
[363014278,1748549466038,-500.0,0.00021917,2]
[363014279,1748549466047,-500.0,0.00021917,2]
[363014280,1748549466056,-500.0,0.00021917,2]
[363014281,1748549466065,-500.0,0.00021917,2]
[363014282,1748549466073,-500.0,0.00021917,2]
[363014283,1748549466082,-500.0,0.00021917,2]
[363014284,1748549466091,-504.28324926,0.00021917,2]
[363014286,1748549466100,-430.0,0.00021917,2]
[363014288,1748549466109,-430.0,0.00021917,2]
[363014289,1748549466117,-430.0,0.00021917,2]
[363014291,1748549466127,-248.268931,0.00021917,2]
[363014293,1748549466136,-248.268931,0.00021917,2]
[363014295,1748549466146,-1197.968823,0.00021917,2]
[363014297,1748549466156,-1197.968827,0.00021917,2]
[363014299,1748549466166,-1289.81,0.00021917,2]
[363014301,1748549466176,-430.0,0.00021917,2]
[363014303,1748549466186,-430.0,0.00021917,2]
[363014305,1748549466195,-430.0,0.00021917,2]
[363014307,1748549466205,-1598.38,0.00021917,2]
[363014309,1748549466214,-430.0,0.00021917,2]
[363014311,1748549466227,-2053.27,0.00021917,2]
[363014313,1748549466236,-1525.7,0.00021917,2]
[363014316,1748549466245,-566.83,0.00021917,2]
[363014317,1748549466255,-430.0,0.00021917,2]
[363014319,1748549466263,-924.2,0.00021917,2]
[363014321,1748549466273,-1613.56,0.00021917,2]
[363014324,1748549466283,-1663.74,0.00021917,2]
[363014325,1748549466292,-434.48,0.00021917,2]
[363014327,1748549466302,-635.963784,0.00021917,2]
[363014329,1748549466311,-635.96378,0.00021917,2]
[363014331,1748549466320,-541.63,0.00021917,2]
[363014333,1748549466329,-835.53,0.00021917,2]
[363014336,1748549466339,-430.0,0.00021917,2]
[363014337,1748549466349,-430.0,0.00021917,2]
[363014339,1748549466359,-697.06,0.00021917,2]
[363014342,1748549466368,-171.211019,0.00021917,2]
[363014343,1748549466377,-719.7,0.00021917,2]
[363014345,1748549466387,-171.211028,0.00021917,2]
[363014347,1748549466398,-481.16774827,0.00021917,2]
[363014349,1748549466408,-430.0,0.00021917,2]
[363014352,1748549466419,-1058.87,0.00021917,2]
[363014354,1748549466428,-505.83,0.00021917,2]
[363014355,1748549466439,-430.0,0.00021917,2]
[363014357,1748549466448,-4239.46,0.00021917,2]
[363014359,1748549466458,-238.76942744,0.00021917,2]
[363014362,1748549466467,-430.0,0.00021917,2]
[363014363,1748549466477,-374.10630352,0.00021917,2]
[363014365,1748549466487,-684.87,0.00021917,2]
[363014368,1748549466496,-766.46,0.00021917,2]
[363014369,1748549466506,-1884.25,0.00021917,2]
[363014371,1748549466515,-8614.59,0.00021917,2]
[363014373,1748549466525,-430.0,0.00021917,2]
[363014375,1748549466534,-430.0,0.00021917,2]
[363014377,1748549466543,-9593.71,0.00021917,2]
[363014379,1748549466552,-419.77186532,0.00021917,2]
[363014381,1748549466562,-430.0,0.00021917,2]
[363014383,1748549466572,-430.0,0.00021917,2]
[363014385,1748549466580,-2177.87,0.00021917,2]
[363014387,1748549466589,-1506.744032,0.00021917,2]
[363014389,1748549466599,-3170.25,0.00021917,2]
[363014391,1748549466617,-1506.74403,0.00021917,2]
[363014393,1748549466634,-731.21,0.00021917,2]
[363014395,1748549466646,-4753.34,0.00021917,2]
[363014397,1748549466656,-3190.48,0.00021917,2]
[363014399,1748549466665,-8930.54,0.00021917,2]
[363014401,1748549466675,-1845.48,0.00021917,2]
[363014403,1748549466684,-3276.45,0.00021917,2]
[363014405,1748549466694,-430.0,0.00021917,2]
[363014407,1748549466704,-1439.05,0.00021917,2]
[363014409,1748549466713,-5099.18,0.00021917,2]
[363014411,1748549466722,-430.0,0.00021917,2]
[363014413,1748549466732,-2614.13,0.00021917,2]
[363014415,1748549466742,-3219.84,0.00021917,2]
[363014417,1748549466751,-765.63,0.00021917,2]
[363014419,1748549466760,-3876.68,0.00021917,2]
[363014421,1748549466769,-430.0,0.00021917,2]
[363014423,1748549466778,-495.3,0.00021917,2]
[363014425,1748549466788,-2095.37,0.00021917,2]
[363014427,1748549466797,-11864.57,0.00021917,2]
[363014429,1748549466806,-725.41,0.00021917,2]
[363014431,1748549466815,-430.0,0.00021917,2]
[363014433,1748549466824,-574.83,0.00021917,2]
[363014435,1748549466834,-674.31,0.00021917,2]
[363014437,1748549466843,-899.16,0.00021917,2]
[363014439,1748549466852,-953.05,0.00021917,2]
[363014440,1748549466861,-500.0,0.00021917,2]
[363014442,1748549466870,-500.0,0.00021917,2]
[363014445,1748549466879,-500.0,0.00021917,2]
[363014446,1748549466889,-430.0,0.00021917,2]
[363014448,1748549466899,-500.0,0.00021917,2]
[363014450,1748549466908,-500.0,0.00021917,2]
[363014452,1748549466918,-395.63720593,0.00021917,2]
[363014454,1748549466927,-1910.48,0.00021917,2]
[363014456,1748549466936,-1205.75,0.00021917,2]
[363014458,1748549466945,-984.37,0.00021917,2]
[363014460,1748549466954,-7352.62,0.00021917,2]
[363014462,1748549466963,-430.0,0.00021917,2]
[363014464,1748549466971,-594.42,0.00021917,2]
[363014466,1748549466981,-1874.18,0.00021917,2]
[363014468,1748549466990,-324.1619295,0.00021917,2]
[363014470,1748549467000,-12309.9,0.00021917,2]
[363014472,1748549467009,-7566.48,0.00021917,2]
[363014474,1748549467019,-5190.7,0.00021917,2]
[363014476,1748549467030,-1104.35,0.00021917,2]
[363014478,1748549467039,-6241.32,0.00021917,2]
[363014479,1748549467048,-5362.8,0.00021917,2]
[363014481,1748549467058,-430.0,0.00021917,2]
[363014483,1748549467067,-641.57,0.00021917,2]
[363014485,1748549467076,-447.91,0.00021917,2]
[363014487,1748549467086,-1205.76,0.00021917,2]
[363014489,1748549467095,-3425.09,0.00021917,2]
[363014491,1748549467104,-5494.42,0.00021917,2]
[363014493,1748549467114,-500.0,0.00021918,2]
[363014495,1748549467123,-500.0,0.00021918,2]
[363014497,1748549467133,-500.0,0.00021918,2]
[363014499,1748549467143,-647.30908295,0.00021918,2]
[363014501,1748549467152,-3014.44826507,0.00021969,6]
[363014503,1748549467162,-20206.99267114,0.00022,2]
[363014505,1748549467171,-568.34,0.00022,7]
[363014507,1748549467180,-31908.64,0.00022,7]
[363014509,1748549467189,-201.864626,0.00022,7]
[363014511,1748549467198,-201.864626,0.00022,7]
[363014513,1748549467207,-241.098971,0.00022,7]
[363014515,1748549467216,-241.098971,0.00022,7]
[363014517,1748549467225,-151.0,0.00022,7]
[363014519,1748549467234,-205.166101,0.00022,7]
[363014520,1748549467244,-205.166101,0.00022,7]
[363014522,1748549467253,-157.139693,0.00022,7]
[363014524,1748549467262,-157.139693,0.00022,7]
[363014526,1748549467271,-1153.678468,0.00022,7]
[363014528,1748549467280,-1153.678468,0.00022,7]
[363014530,1748549467289,-151.0,0.00022,7]
[363014532,1748549467298,-151.0,0.00022,7]
[363014534,1748549467307,-320.97949,0.00022,7]
[363014536,1748549467316,-320.97949,0.00022,7]
[363014538,1748549467326,-151.0,0.00022,7]
[363014540,1748549467335,-151.0,0.00022,7]
[363014542,1748549467343,-244.505466,0.00022,7]
[363014544,1748549467352,-244.505466,0.00022,7]
[363014546,1748549467362,-1586.339018,0.00022,7]
[363014548,1748549467371,-1586.339019,0.00022,7]
[363014550,1748549467380,-262.046232,0.00022,7]
[363014552,1748549467390,-262.046232,0.00022,7]
[363014554,1748549467401,-248.268931,0.00022,7]
[363014556,1748549467410,-248.268933,0.00022,7]
[363014558,1748549467419,-212.70147903,0.00022,7]
[363014560,1748549467432,-12660.97845086,0.00022,7]
[363014562,1748549467442,-314.78059479,0.00022,7]
[363014564,1748549467451,-3000.0,0.000221,2]
[363014566,1748549467461,-3000.0,0.0002211,2]
[363014568,1748549467470,-3000.0,0.0002212,2]
[363014570,1748549467479,-151.0,0.0002212,7]
[363014572,1748549467488,-3000.0,0.0002213,2]
[363014574,1748549467498,-3000.0,0.0002214,2]
[363014576,1748549467507,-3014.44826507,0.00022141,6]
[363014578,1748549467516,-3000.0,0.0002215,2]
[363014580,1748549467525,-3000.0,0.0002216,2]
[363014582,1748549467534,-3000.0,0.0002217,2]
[363014584,1748549467543,-754.9,0.00022171,6]
[363014586,1748549467552,-3000.0,0.0002218,2]
[363014588,1748549467562,-3000.0,0.0002219,2]
[363014590,1748549467571,-335.140275,0.00022191,7]
[363014592,1748549467580,-335.140275,0.00022191,7]
[363014593,1748549467590,-151.0,0.00022191,7]